bitfinex/quotes_ETHUSD_20220201
["timestamp","ask_amount","ask_price","bid_price","bid_amount"]
[1643747973717,0.7780359,2766.6,2766.3,0.821]
[1643747974117,0.7780359,2766.6,2766.3,1.72458]
[1643747974352,0.7780359,2766.6,2766.3,2.72458]
[1643747974549,0.1807,2767.5,2766.3,2.72458]
[1643747974754,0.1807,2767.5,2766.4,2.11255719]
[1643747974952,0.1807,2767.5,2766.8,0.43132834]
[1643747975150,0.1807,2767.5,2766.9,2.76078494]
[1643747975353,0.18483469,2767.6,2767.0,1.90337]
[1643747975551,0.18483469,2767.6,2766.9,0.821]
[1643747976253,0.18483469,2767.6,2767.0,2.09691808]
[1643747976552,0.00423469,2767.6,2767.0,4.00027808]
[1643747977050,0.00423469,2767.6,2767.5,0.82964238]
[1643747977450,0.00423469,2767.6,2767.4,0.29040057]
[1643747977650,0.00423469,2767.6,2767.1,1.521]
[1643747977849,0.00423469,2767.6,2767.1,1.42431]
[1643747978131,0.00423469,2767.6,2767.0,0.90336]
[1643747978336,0.00423469,2767.6,2767.1,0.434]
[1643747978534,0.00423469,2767.6,2766.6,5.68702315]
[1643747978737,0.00423469,2767.6,2766.6,2.67992315]
[1643747979034,0.00423469,2767.6,2766.7,0.27639994]
[1643747979633,0.00423469,2767.6,2767.0,0.39489379]
[1643747979836,0.00423469,2767.6,2767.1,0.7674779]
[1643747980034,0.00423469,2767.6,2767.1,1.0674779]
[1643747980538,0.00423469,2767.6,2767.1,3.21446436]
[1643747980734,0.00423469,2767.6,2767.1,3.51446436]
[1643747980934,0.00423469,2767.6,2767.2,1.434]
[1643747981137,0.88376081,2768.5,2768.1,0.92858559]
[1643747981345,0.1806,2768.4,2767.7,0.36113529]
[1643747981538,0.1806,2768.4,2767.3,1.7847]
[1643747981949,0.1806,2768.4,2767.3,1.4847]
[1643747982154,0.18017,2768.3,2767.3,1.4847]
[1643747982350,0.70664185,2767.8,2767.3,2.01159044]
[1643747982551,0.70664185,2767.8,2766.8,0.434]
[1643747982552,0.70664185,2767.8,2767.2,0.43893218]
[1643747982753,0.70664185,2767.8,2767.3,0.3]
[1643747982952,0.1806,2768.0,2767.2,0.43893218]
[1643747983961,0.8843976,2768.0,2767.7,0.32531864]
[1643747984157,0.1806,2768.0,2767.7,0.32531864]
[1643747985360,0.1806,2768.0,2767.5,0.8993319]
[1643747986303,0.1806,2768.0,2767.6,0.39384421]
[1643747986506,0.1806,2768.0,2767.3,0.25]
[1643747988110,0.1806,2768.0,2767.7,0.72013043]
[1643747988309,0.1806,2768.0,2767.3,0.25]
[1643747989363,0.74489714,2767.5,2767.3,0.25]
[1643747989858,0.1806,2767.4,2767.3,0.25]
[1643747990859,0.3219,2767.9,2767.3,0.25]
[1643747990860,0.1806,2767.6,2767.3,0.25]
[1643747991059,0.1806,2767.8,2767.3,2.33837675]
[1643747991261,0.3219,2767.9,2767.3,3.63837675]
[1643747991462,0.3219,2767.9,2767.3,0.55]
[1643747991665,0.3219,2767.9,2767.8,0.735237]
[1643747992062,0.3219,2767.9,2767.3,0.25]
[1643747993302,0.3219,2767.9,2767.7,0.31848731]
[1643747993510,0.1806,2767.8,2767.7,0.31848731]
[1643747994309,0.3219,2767.9,2767.7,3.56848731]
[1643747994706,0.3219,2767.9,2767.7,3.86848731]
[1643747995005,0.3219,2767.9,2767.7,0.31848731]
[1643747998469,0.5025,2767.9,2767.7,0.31848731]
[1643747998865,0.3219,2767.9,2767.7,0.31848731]
[1643747999667,0.3219,2767.9,2767.5,1.24606229]
[1643748000271,0.3219,2767.9,2767.5,0.94606229]
[1643748000701,0.3219,2767.9,2767.6,0.41958336]
[1643748000903,0.00652946,2768.3,2767.6,2.44333858]
[1643748001110,0.1806,2768.9,2767.9,0.01260694]
[1643748001308,0.1806,2769.3,2767.9,0.01260694]
[1643748001509,1.52534789,2769.2,2768.3,0.25]
[1643748001707,8.3232764,2769.8,2768.3,0.25]
[1643748001708,0.1804,2769.1,2768.3,0.25]
[1643748001907,0.85024957,2769.3,2768.8,0.74050623]
[1643748002112,1.70565032,2769.2,2768.9,0.25]
[1643748002306,0.1804,2769.2,2768.9,0.25]
[1643748003110,0.1804,2769.5,2768.9,0.25]
[1643748003308,1.42523192,2769.4,2768.9,0.25]
[1643748003509,0.1804,2769.3,2768.9,0.55]
[1643748003707,0.1804,2769.3,2768.9,0.25]
[1643748003911,0.18017,2769.2,2768.1,0.4305]
[1643748004110,0.1804,2769.1,2768.1,0.4305]
[1643748004352,0.1804,2769.1,2768.1,0.1805]
[1643748004553,0.18017,2769.0,2768.1,0.1805]
[1643748004754,0.1804,2768.9,2768.1,0.1805]
[1643748005354,0.1804,2768.9,2768.1,0.52064149]
[1643748005556,0.1804,2768.9,2768.2,0.74482253]
[1643748005557,0.80662711,2768.7,2768.2,0.74482253]
[1643748005758,0.1806,2768.6,2768.2,0.74482253]
[1643748006156,0.1806,2768.6,2767.8,1.4282]
[1643748006359,0.1806,2768.6,2767.7,1.5012]
[1643748006759,0.1806,2768.6,2767.7,2.5012]
[1643748006962,0.1806,2768.8,2767.8,0.90314]
[1643748007159,0.18017,2769.5,2768.1,0.01240282]
[1643748007160,0.1806,2769.5,2768.1,0.01240282]
[1643748007362,0.1806,2769.5,2768.2,2.23971]
[1643748007558,0.1804,2769.9,2768.3,0.1804]
[1643748007760,0.1804,2769.9,2768.4,0.434]
[1643748008010,0.75764075,2769.7,2768.5,0.1804]
[1643748008214,2.2464066,2769.6,2768.5,0.1804]
[1643748008413,2.2464066,2769.6,2768.3,1.0]
[1643748008810,0.18017,2769.5,2768.2,1.80571]
[1643748009012,0.87023478,2768.8,2768.4,0.44882805]
[1643748009212,0.1804,2769.2,2768.4,0.44882805]
[1643748009415,0.1804,2769.3,2768.4,0.44882805]
[1643748010020,0.18017,2769.2,2768.4,0.44882805]
[1643748010217,0.7124582,2769.0,2768.4,0.44882805]
[1643748011756,0.1804,2769.1,2768.4,0.44882805]
[1643748011961,0.1804,2769.2,2768.4,0.44882805]
[1643748012156,0.18017,2769.4,2768.4,0.44882805]
[1643748012157,0.1804,2769.3,2768.4,0.44882805]
[1643748012562,0.1804,2769.3,2769.1,0.38347511]
[1643748012757,0.78562147,2769.5,2769.0,0.69626363]
[1643748012959,0.1804,2769.4,2769.0,0.69626363]
[1643748013961,0.1804,2769.4,2769.1,0.35293394]
[1643748014163,0.1804,2769.4,2769.0,0.69626363]
[1643748014563,0.1804,2769.5,2769.0,0.69626363]
[1643748016406,0.1804,2769.5,2769.1,0.34429746]
[1643748017006,0.1804,2770.0,2769.1,0.34429746]
[1643748017811,0.1804,2770.1,2769.7,0.41713347]
[1643748018006,0.18017,2770.2,2768.9,5.7775]
[1643748018007,0.1804,2769.9,2768.9,5.7775]
[1643748018209,0.1804,2770.1,2768.9,5.7775]
[1643748018509,0.68437452,2769.8,2769.3,0.9038783]
[1643748018710,0.1804,2769.7,2768.9,5.7775]
[1643748018911,0.1804,2769.7,2769.0,0.90275]
[1643748019109,0.1804,2769.7,2768.9,1.62745638]
[1643748019110,2.29443508,2769.7,2768.9,1.62745638]
[1643748019569,2.29443508,2769.7,2769.2,0.69734765]
[1643748019765,0.1804,2769.7,2769.2,0.69734765]
[1643748020371,0.1804,2769.8,2769.2,0.69734765]
[1643748020566,0.18017,2770.2,2769.2,0.69734765]
[1643748020767,0.1804,2770.1,2769.2,0.69734765]
[1643748020969,0.1804,2770.1,2769.7,0.39213172]
[1643748021167,0.81878889,2770.5,2769.9,0.8582829]
[1643748021769,0.81878889,2770.5,2769.7,0.90254]
[1643748021970,0.1804,2770.4,2769.7,0.90254]
[1643748022269,0.1804,2770.4,2769.4,1.80507]
[1643748022270,0.1804,2770.4,2769.5,1.0]
[1643748022769,0.1804,2770.4,2769.6,0.40479857]
[1643748023008,0.1804,2770.4,2769.8,0.81578634]
[1643748023411,1.52479803,2770.3,2769.8,0.81578634]
[1643748023612,0.1804,2770.2,2769.8,0.81578634]
[1643748024312,0.1804,2770.4,2769.8,0.81578634]
[1643748024512,1.52478435,2770.3,2769.8,0.81578634]
[1643748024712,0.1804,2770.2,2769.8,0.81578634]
[1643748025714,0.1804,2770.4,2769.8,0.81578634]
[1643748025912,1.5248161,2770.3,2769.8,0.81578634]
[1643748026112,0.1804,2770.2,2769.8,0.81578634]
[1643748026853,0.3,2770.2,2769.8,0.81578634]
[1643748027054,0.1804,2770.4,2769.8,0.81578634]
[1643748027255,0.1804,2770.4,2769.6,0.40479857]
[1643748027256,1.70499278,2770.3,2769.4,1.80507]
[1643748027455,0.1804,2770.2,2769.4,1.80507]
[1643748027855,0.1804,2770.4,2769.4,1.80507]
[1643748028058,1.52484379,2770.3,2769.4,1.80507]
[1643748028264,0.1804,2770.2,2769.7,0.43501387]
[1643748028459,0.1804,2770.2,2769.8,0.90170122]
[1643748029060,0.3,2770.2,2769.8,0.90170122]
[1643748029261,0.1804,2770.4,2769.8,0.90170122]
[1643748030259,0.1804,2770.4,2769.4,1.80507]
[1643748030512,0.17897505,2770.3,2769.4,1.80507]
[1643748030815,0.1804,2770.2,2769.4,1.80507]
[1643748031615,0.1804,2770.2,2769.7,0.78569811]
[1643748031914,0.1804,2770.2,2769.4,1.80507]
[1643748032113,0.1804,2770.2,2769.2,0.25]
[1643748032114,1.70394229,2770.1,2769.2,0.25]
[1643748032315,1.70394229,2770.1,2768.9,0.1804]
[1643748032316,25.12890178,2770.0,2768.9,0.1804]
[1643748032513,25.12890178,2770.0,2768.7,0.324878]
[1643748032514,1.70409027,2769.9,2768.7,0.324878]
[1643748032713,4.74219554,2769.8,2768.7,0.324878]
[1643748033011,0.75503785,2769.3,2768.8,0.92407812]
[1643748033217,1.35503785,2769.3,2768.8,0.92407812]
[1643748033427,0.75503785,2769.3,2768.8,0.92407812]
[1643748033820,0.75503785,2769.3,2768.7,0.1804]
[1643748034020,1.2340129,2769.3,2768.7,0.1804]
[1643748034864,0.75503785,2769.3,2768.7,0.1804]
[1643748035065,1.05503785,2769.3,2768.7,0.1804]
[1643748035268,0.93543785,2769.3,2768.7,0.1804]
[1643748035469,0.75503785,2769.3,2768.7,0.1804]
[1643748035667,0.1804,2769.5,2768.7,0.90286]
[1643748035868,0.1804,2769.9,2768.7,0.90286]
[1643748036072,3.9384,2770.4,2768.9,0.9027]
[1643748036073,0.1804,2770.3,2768.9,0.9027]
[1643748036368,1.52497112,2770.2,2768.9,1.0831]
[1643748036568,0.1804,2770.1,2768.9,1.0831]
[1643748036768,0.1804,2770.1,2769.5,0.80988047]
[1643748036968,0.1804,2770.4,2769.5,0.80988047]
[1643748037171,0.1804,2770.4,2769.6,2.02667682]
[1643748037172,1.52489713,2770.3,2769.6,2.02667682]
[1643748037371,0.1804,2770.7,2769.6,2.02667682]
[1643748037570,0.1804,2770.7,2769.5,0.80988047]
[1643748037571,1.52479004,2770.6,2769.5,2.84538687]
[1643748037770,1.52479004,2770.6,2769.8,0.34498013]
[1643748037771,0.73044363,2770.3,2769.8,0.34498013]
[1643748038213,0.1804,2770.5,2769.9,2.14970178]
[1643748038417,5.1311,2771.2,2769.9,2.14970178]
[1643748038418,0.1804,2770.7,2769.9,2.14970178]
[1643748038621,0.1804,2771.1,2769.9,2.66970178]
[1643748038813,1.52450349,2771.0,2770.0,1.1804]
[1643748039013,1.52450349,2771.0,2770.1,3.26749498]
[1643748039215,0.1804,2771.1,2770.2,1.0]
[1643748039416,1.52444106,2771.0,2770.7,0.35684246]
[1643748039616,0.1804,2771.1,2770.7,0.90223]
[1643748040416,0.1804,2771.3,2770.7,0.90223]
[1643748040616,1.52442071,2771.2,2770.7,0.90223]
[1643748041014,1.52442071,2771.2,2770.9,0.41825149]
[1643748041219,1.52442071,2771.2,2770.8,0.33437402]
[1643748041619,1.52442071,2771.2,2770.7,0.90223]
[1643748042859,1.52442071,2771.2,2770.8,0.32082767]
[1643748043261,0.1804,2771.7,2770.9,0.52]
[1643748043460,1.52433327,2771.6,2770.9,2.53135473]
[1643748043660,1.52433327,2771.5,2770.9,2.53135473]
[1643748043865,1.52433327,2771.4,2770.9,2.53135473]
[1643748044062,0.1804,2771.8,2770.9,2.53135473]
[1643748044063,1.52433327,2771.3,2770.9,2.53135473]
[1643748044263,1.52433327,2771.2,2770.9,0.52]
[1643748044463,0.71152717,2771.5,2770.7,0.90223]
[1643748044662,1.52435358,2771.4,2770.6,0.74311752]
[1643748044863,1.52435358,2771.4,2770.7,1.42222]
[1643748045065,1.52435358,2771.4,2770.8,2.14276985]
[1643748045263,0.1804,2771.9,2770.9,0.52]
[1643748045525,1.52418662,2771.8,2771.0,2.36780575]
[1643748045730,0.1804,2771.7,2771.0,2.36780575]
[1643748045927,1.52418662,2771.6,2771.0,2.36780575]
[1643748046127,0.85983504,2771.5,2771.1,0.52]
[1643748046328,0.85983504,2771.5,2771.2,0.52]
[1643748046732,0.1804,2772.0,2771.2,0.52]
[1643748046930,1.52411694,2771.9,2771.2,3.44396235]
[1643748047229,1.52411694,2771.9,2771.2,1.42205]
[1643748047230,0.1804,2771.8,2771.2,1.42205]
[1643748047428,1.52411694,2771.7,2771.2,3.41857509]
[1643748047628,1.52411694,2771.7,2771.2,1.42205]
[1643748047629,2.30021542,2771.7,2771.2,1.42205]
[1643748047829,1.52411694,2771.7,2771.2,3.42967612]
[1643748048030,0.1804,2771.8,2771.2,3.42967612]
[1643748048229,0.47897505,2772.3,2771.2,3.42967612]
[1643748048230,1.52402978,2771.7,2771.2,3.42967612]
[1643748048431,1.52402978,2772.1,2771.2,3.42967612]
[1643748048629,0.47897505,2772.3,2771.2,3.42967612]
[1643748048630,1.70422199,2772.0,2771.2,3.42967612]
[1643748048832,1.52402199,2771.9,2771.8,0.70761297]
[1643748049040,1.52402199,2772.1,2771.6,0.90198]
[1643748049256,1.52402199,2772.0,2771.6,1.42198]
[1643748049458,1.52402199,2771.9,2771.6,1.42198]
[1643748049659,0.86981225,2772.3,2771.6,1.42198]
[1643748049860,1.52396972,2772.2,2771.6,1.42198]
[1643748051861,1.82396972,2772.2,2771.6,1.42198]
[1643748052060,1.52396972,2772.1,2771.6,1.42198]
[1643748052661,0.82381486,2771.8,2771.6,1.42198]
[1643748052863,1.52396972,2771.7,2771.2,0.1802]
[1643748053110,0.1804,2771.6,2771.2,0.1802]
[1643748053510,1.52396972,2771.5,2771.2,0.1802]
[1643748053709,0.1804,2771.4,2771.2,0.1802]
[1643748053910,1.52396972,2771.3,2771.2,0.1802]
[1643748054109,0.1804,2771.4,2771.2,0.1802]
[1643748054313,0.68557958,2772.1,2771.2,0.1802]
[1643748054314,0.1804,2771.7,2771.2,0.1802]
[1643748054710,0.1804,2772.2,2771.1,0.52]
[1643748054910,1.52410835,2772.1,2771.1,0.52]
[1643748055111,2.05203028,2772.0,2771.1,0.52]
[1643748055311,1.52410835,2771.9,2771.1,0.52]
[1643748055509,0.7559317,2771.7,2771.1,0.52]
[1643748055709,1.52410835,2771.6,2771.1,0.52]
[1643748055910,0.7559317,2771.7,2771.3,0.90201]
[1643748056961,1.52416782,2771.6,2770.9,4.07457328]
[1643748057158,1.52416782,2771.6,2770.9,1.80421]
[1643748057356,1.52416782,2771.6,2770.8,0.1804]
[1643748057557,1.70456782,2771.6,2770.6,4.37304664]
[1643748057757,1.52416782,2771.5,2770.8,0.3524751]
[1643748057957,1.52416782,2771.5,2771.2,0.87752294]
[1643748058166,0.1804,2771.6,2770.9,2.01754724]
[1643748058461,0.7559317,2771.7,2770.9,2.04653937]
[1643748058862,1.52418079,2771.6,2770.9,3.04653937]
[1643748059062,0.1804,2771.9,2770.9,2.94868937]
[1643748059262,1.52406307,2771.8,2771.0,3.32397]
[1643748059471,1.52408634,2771.7,2771.1,2.63943459]
[1643748059664,0.4804,2772.3,2771.1,3.15943459]
[1643748059864,1.52403629,2772.2,2771.2,1.0]
[1643748060065,1.2257978,2771.8,2771.3,2.8979655]
[1643748060266,1.2257978,2771.8,2771.4,1.0]
[1643748060505,1.2257978,2771.8,2771.2,1.90199]
[1643748060708,0.79469531,2771.8,2771.2,1.90199]
[1643748060906,0.79469531,2771.8,2771.3,2.01638373]
[1643748061506,1.52404994,2771.7,2771.3,2.01638373]
[1643748061707,1.52404994,2771.7,2771.3,2.68730394]
[1643748061909,1.52404994,2771.7,2771.4,1.0]
[1643748062111,0.1804,2772.3,2771.4,1.0]
[1643748062112,0.1804,2772.3,2771.4,1.90199]
[1643748062310,1.52402847,2772.2,2771.4,1.80393]
[1643748062512,1.52402847,2772.2,2771.4,2.80393]
[1643748062513,0.1802,2772.1,2771.4,2.80393]
[1643748062713,1.52402847,2772.0,2771.5,1.0]
[1643748062910,1.52402847,2771.9,2771.8,0.89010989]
[1643748063314,1.52402847,2772.2,2771.7,0.90189]
[1643748064459,1.52402847,2772.2,2771.8,0.68951187]
[1643748065465,1.27917453,2772.2,2771.8,0.68951187]
[1643748065669,0.1802,2772.5,2771.9,0.35996237]
[1643748065968,0.1802,2772.6,2772.0,0.90181]
[1643748066167,0.4802,2772.8,2772.0,1.20181]
[1643748066367,0.1802,2772.8,2772.0,1.20181]
[1643748066567,0.88720723,2772.6,2772.0,1.20181]
[1643748066767,0.88720723,2772.6,2772.0,0.90181]
[1643748066966,1.18720723,2772.6,2771.9,0.1802]
[1643748067172,1.18720723,2772.6,2771.8,2.32345]
[1643748067768,0.44605256,2772.4,2771.8,2.32345]
[1643748068006,0.88977762,2772.1,2771.8,2.32345]
[1643748068207,0.88977762,2772.1,2771.7,0.71472283]
[1643748068208,0.88977762,2772.1,2771.7,0.1802]
[1643748068507,0.88977762,2772.1,2771.6,1.80371]
[1643748069308,0.88977762,2772.1,2771.6,2.66466104]
[1643748069508,0.88977762,2772.1,2771.6,1.80371]
[1643748069908,0.85622562,2772.1,2771.6,1.80371]
[1643748070111,1.99078341,2772.0,2771.4,0.1802]
[1643748070410,2.29078341,2772.0,2771.4,0.1802]
[1643748070609,0.95051353,2771.5,2771.4,0.1802]
[1643748071010,1.36201666,2771.5,2771.4,0.1802]
[1643748071210,0.95051353,2771.5,2771.4,0.1802]
[1643748072365,0.95051353,2771.5,2771.0,3.05401]
[1643748072561,0.95051353,2771.5,2771.0,1.80401]
[1643748072762,0.95051353,2771.5,2771.1,0.3]
[1643748075844,0.52717278,2771.9,2771.3,0.90209]
[1643748076649,0.52717278,2771.9,2771.3,1.20209]
[1643748076849,0.87841848,2771.6,2771.3,1.20209]
[1643748077754,0.87841848,2771.6,2771.3,0.90209]
[1643748078850,0.1804,2772.2,2771.3,0.90209]
[1643748079354,0.1804,2772.2,2771.3,1.90209]
[1643748079557,0.1804,2772.2,2771.3,0.90209]
[1643748079558,0.3,2772.2,2771.3,0.90209]
[1643748079756,0.1802,2772.1,2771.3,2.20209]
[1643748079958,0.67911419,2771.8,2771.4,2.68506901]
[1643748080560,0.1804,2772.2,2771.4,2.68506901]
[1643748080760,0.6731064,2772.1,2771.4,2.68506901]
[1643748080960,0.9731064,2772.1,2771.4,2.68506901]
[1643748081361,0.3,2772.1,2771.4,2.68506901]
[1643748081560,1.1535064,2772.2,2771.4,2.68506901]
[1643748081765,0.67889125,2772.0,2771.4,2.68506901]
[1643748082162,0.9731064,2772.2,2771.4,3.58702901]
[1643748082369,1.07910995,2772.4,2771.6,0.90191]
[1643748082370,0.6731064,2772.3,2771.6,0.90191]
[1643748082563,0.6731064,2772.4,2771.6,1.20191]
[1643748083817,1.58887802,2772.4,2772.0,0.90187]
[1643748084018,1.58887802,2772.4,2771.9,0.15650756]
[1643748084217,1.88887802,2772.4,2771.9,0.15650756]
[1643748084417,1.63887802,2772.4,2771.9,0.15650756]
[1643748084619,1.58887802,2772.4,2771.9,0.15650756]
[1643748085019,0.1802,2772.8,2772.0,7.70187]
[1643748085234,7.47,2773.5,2772.1,1.7002]
[1643748085235,0.68277402,2773.0,2772.1,1.7002]
[1643748085419,1.79583426,2773.7,2772.2,1.80329]
[1643748085420,1.52353413,2772.9,2772.2,1.80329]
[1643748085624,0.00284304,2773.7,2772.3,0.7002]
[1643748085625,1.52353413,2772.8,2772.3,0.7002]
[1643748085819,1.52353413,2772.7,2772.3,2.3002]
[1643748086019,0.8565004,2773.3,2772.3,2.3002]
[1643748086222,0.68277402,2773.4,2772.8,0.94422633]
[1643748086223,1.52341118,2773.2,2772.8,0.94422633]
[1643748086417,1.52341118,2773.1,2772.8,2.14572633]
[1643748086617,0.68277402,2773.5,2772.8,2.14572633]
[1643748086618,1.52341118,2773.0,2772.8,2.14572633]
[1643748086855,1.52341118,2772.9,2772.8,2.14572633]
[1643748087254,1.19003802,2773.3,2772.8,1.2015]
[1643748087454,1.52341118,2773.2,2772.8,1.2015]
[1643748087653,1.52341118,2773.2,2772.8,3.00449]
[1643748087856,1.52341118,2773.2,2772.8,2.70449]
[1643748088261,1.52341118,2773.2,2772.8,3.47280074]
[1643748088661,1.52341118,2773.1,2772.8,3.47280074]
[1643748088860,1.52341118,2773.0,2772.8,3.47280074]
[1643748089059,1.52341118,2772.9,2772.8,3.47280074]
[1643748089460,1.52341118,2773.4,2772.8,3.47280074]
[1643748089761,1.52341118,2773.3,2772.8,3.47280074]
[1643748089959,1.52341118,2773.2,2772.8,3.47280074]
[1643748090160,1.52341118,2773.1,2772.8,3.47280074]
[1643748090360,0.92742109,2773.5,2772.8,3.47280074]
[1643748090361,1.52341118,2773.0,2772.8,3.47280074]
[1643748090604,1.52341118,2772.9,2772.8,3.47280074]
[1643748090810,1.52341118,2773.4,2772.8,3.47280074]
[1643748091005,1.52341118,2773.3,2772.8,3.47280074]
[1643748091207,1.52341118,2773.2,2772.8,3.47280074]
[1643748091406,1.12725856,2773.6,2772.8,3.47280074]
[1643748091407,1.52341118,2773.1,2772.8,3.47280074]
[1643748091604,1.12725856,2773.6,2772.8,3.47280074]
[1643748091605,1.52341118,2773.5,2772.8,3.47280074]
[1643748091810,1.52341118,2773.4,2772.8,3.47280074]
[1643748092011,1.52341118,2773.3,2772.8,3.47280074]
[1643748092209,1.52341118,2773.2,2772.8,3.47280074]
[1643748092511,1.52341118,2773.1,2772.8,1.803]
[1643748092711,1.52341118,2773.0,2772.8,1.2015]
[1643748092911,1.52341118,2773.3,2772.8,1.2015]
[1643748093111,1.52341118,2773.2,2772.8,1.2015]
[1643748093316,1.52341118,2773.1,2772.8,1.2015]
[1643748093512,1.52341118,2773.0,2772.9,0.90261374]
[1643748093720,1.52341118,2773.3,2772.9,0.90261374]
[1643748093915,1.52341118,2773.3,2772.8,1.2015]
[1643748094977,1.52341118,2773.3,2772.6,1.80299]
[1643748095179,0.3,2773.3,2772.4,1.98353]
[1643748095477,21.33754812,2773.4,2772.4,1.80333]
[1643748095478,0.35917505,2773.2,2772.4,1.80333]
[1643748095675,0.65917505,2773.2,2772.4,1.80333]
[1643748096278,0.42852846,2772.8,2772.4,1.80333]
[1643748096480,0.4802,2773.2,2772.5,0.74428625]
[1643748096877,0.1802,2773.2,2772.5,0.74428625]
[1643748097277,0.1802,2773.2,2772.5,1.04428625]
[1643748097477,0.3206363,2772.9,2772.5,1.04428625]
[1643748097678,0.3206363,2772.9,2772.5,0.74428625]
[1643748098713,0.3206363,2772.9,2772.4,1.80333]
[1643748100315,0.3206363,2772.9,2772.5,0.79151579]
[1643748100919,0.3206363,2772.9,2772.4,1.80333]
[1643748102164,0.3206363,2772.9,2772.4,2.69252962]
[1643748102367,0.3206363,2772.9,2772.4,1.80333]
[1643748102766,0.3206363,2772.9,2772.1,1.98366]
[1643748102767,0.6206363,2772.9,2772.1,1.98366]
[1643748102967,0.6206363,2772.9,2771.8,1.98387]
[1643748102968,0.1802,2772.8,2771.8,1.98387]
[1643748103566,0.34803399,2772.3,2771.9,0.93457549]
[1643748103770,0.34803399,2772.3,2771.8,1.80367]
[1643748105369,0.34803399,2772.3,2771.6,2.94420867]
[1643748108125,0.37281143,2771.8,2771.6,2.94420867]
[1643748108326,0.37281143,2771.8,2771.6,1.80384]
[1643748108528,0.8425221,2772.4,2771.6,1.80384]
[1643748108727,0.1802,2772.3,2771.6,1.80384]
[1643748109124,21.3602,2772.3,2771.6,1.80384]
[1643748109556,0.35211398,2772.1,2771.6,1.80384]
[1643748109965,0.65211398,2772.1,2771.6,1.80384]
[1643748110563,1.02744925,2772.3,2771.6,1.80384]
[1643748111467,0.43040974,2772.2,2771.9,0.70190481]
[1643748112066,0.43040974,2772.2,2771.8,0.90196]
[1643748113711,0.43040974,2772.2,2771.8,1.61021683]
[1643748113914,0.4802,2772.4,2771.8,1.61021683]
[1643748114116,0.3,2772.4,2771.8,1.61021683]
[1643748114313,0.4802,2772.6,2771.8,1.61021683]
[1643748114817,0.1802,2772.6,2771.8,1.61021683]
[1643748115114,0.32627539,2772.1,2771.8,1.61021683]
[1643748116012,0.32627539,2772.1,2771.8,0.90196]
[1643748116858,0.90610734,2772.3,2771.8,0.90196]
[1643748117055,1.52391793,2772.2,2771.8,0.90196]
[1643748118262,1.52391793,2772.2,2771.9,2.42970624]
[1643748118463,0.1802,2772.6,2771.9,2.42970624]
[1643748118662,0.86297402,2773.1,2772.0,0.52]
[1643748118861,1.52357405,2773.0,2772.2,0.90165]
[1643748119064,1.52357405,2773.0,2772.3,2.92942028]
[1643748119268,1.52357405,2772.9,2772.5,0.90154]
[1643748119463,1.52357405,2773.2,2772.6,3.91838158]
[1643748119665,1.52343473,2773.1,2773.0,0.93812248]
[1643748119864,1.52343473,2773.1,2772.7,1.0]
[1643748120067,0.1802,2773.4,2773.0,0.86069236]
[1643748120265,1.52339491,2773.3,2773.0,0.86069236]
[1643748120511,1.52339491,2773.2,2773.0,0.86069236]
[1643748120713,1.52339491,2773.1,2773.0,0.86069236]
[1643748120912,1.52339491,2773.5,2773.0,0.86069236]
[1643748121112,1.70359491,2773.4,2772.9,1.80306]
[1643748121314,1.52339491,2773.3,2772.9,1.80306]
[1643748121512,0.1802,2773.5,2772.9,0.90153]
[1643748121513,1.52339491,2773.2,2772.9,0.90153]
[1643748121714,0.1802,2773.5,2773.0,2.01003086]
[1643748121715,1.52339491,2773.1,2773.0,2.01003086]
[1643748122321,1.52339491,2773.1,2773.0,2.82146289]
[1643748122520,1.52339491,2773.4,2773.0,2.82146289]
[1643748122921,1.52339491,2773.4,2773.1,0.52]
[1643748123123,2.43783169,2774.0,2773.3,0.90122]
[1643748123322,1.5229793,2773.9,2773.4,2.52]
[1643748123520,1.5229793,2773.9,2773.5,0.1802]
[1643748123719,1.5229793,2773.9,2773.6,0.52]
[1643748123919,2.43783169,2774.1,2773.7,0.99985101]
[1643748124358,2.43783169,2774.1,2773.7,1.90096101]
[1643748124563,2.43783169,2774.1,2773.7,3.70313101]
[1643748124961,1.1086923,2774.2,2773.8,0.90115]
[1643748125161,1.52282409,2774.1,2773.9,0.52]
[1643748125363,1.1086923,2774.2,2773.9,0.52]
[1643748125963,1.1086923,2774.2,2773.9,1.42107]
[1643748127768,1.1086923,2774.2,2773.9,3.46420099]
[1643748128027,1.1086923,2774.2,2773.9,3.64440099]
[1643748129124,1.1086923,2774.2,2773.9,3.46420099]
[1643748129724,1.1086923,2774.2,2774.0,1.0]
[1643748129922,1.1086923,2774.2,2774.1,0.90108]
[1643748130121,1.1086923,2774.2,2774.1,2.89776615]
[1643748130323,1.1086923,2774.2,2774.1,3.89776615]
[1643748132563,1.1086923,2774.2,2774.1,4.41776615]
[1643748132762,0.17911052,2775.0,2774.4,1.80184]
[1643748132962,1.52266693,2774.9,2774.5,2.21665956]
[1643748133166,0.04092649,2774.9,2774.5,2.21665956]
[1643748133366,0.04092649,2774.9,2774.6,0.92606632]
[1643748133970,0.04092649,2774.9,2774.5,3.21665956]
[1643748134172,0.04092649,2774.9,2774.6,0.90095]
[1643748134367,0.04092649,2774.9,2774.6,1.90095]
[1643748135370,0.04092649,2774.9,2774.6,0.90095]
[1643748138632,0.04092649,2774.9,2774.5,0.70011756]
[1643748138827,0.04092649,2774.9,2774.4,1.0]
[1643748139258,0.04092649,2774.9,2774.1,7.313]
[1643748139656,0.04092649,2774.9,2774.1,3.3178]
[1643748139853,0.04092649,2774.9,2774.3,0.72294133]
[1643748140055,0.04092649,2774.9,2774.3,0.73548631]
[1643748140056,0.1802,2774.8,2774.3,0.73548631]
[1643748141055,0.1802,2774.8,2774.3,1.63654631]
[1643748141655,0.04092649,2774.9,2774.3,1.63654631]
[1643748141957,0.04092649,2774.9,2774.4,1.99375236]
[1643748142154,0.04092649,2774.9,2774.3,1.63654631]
[1643748142355,0.04092649,2774.9,2774.4,2.01758409]
[1643748142556,0.04092649,2774.9,2774.4,2.91862409]
[1643748142761,0.04092649,2774.9,2774.4,3.91862409]
[1643748143218,0.04092649,2774.9,2774.5,0.36447034]
[1643748143418,0.04092649,2774.9,2774.6,1.98871595]
[1643748143823,0.95671986,2774.9,2774.2,0.1801]
[1643748144022,0.95671986,2774.9,2774.1,1.0]